Workbook

Sheet Cover
A1: RECORD OF RISK ASSESSMENT
A2: Organisation | C2: Subject
A3: Date | C3: Location
A4: Owner of Risk Assessment
A5: Facilitator
A6: List of Key Resource Materials Utilised | C6: e.g. annual report, business plan, website
A7: List of Analysis Tools Utilised | C7: e.g. stakeholder analysis, PEST Analysis, Capability Analysis
A8: List of Attendees
A9: Name | D9: Position

Sheet Risk Criteria
E1: Consequence
B2: LOGO | D2: Safety | E2: Ailments Not Requiring Medical Treatment | F2: Minor Injury | G2: 1 Serious Injury Causing Hospitalisation or Multiple Minor Injuries | H2: Child Sexual Assault by Staff or 1 Life Threatening Injury or Multiple Serious Injuries Causing Hospitalisation | I2: 1 Death or Multiple Life Threatening Injuries Due to Negligence of ???
D3: Reputation | E3: Self-improvement review required | F3: Scrutiny required by internal committees or internal audit to prevent escalation | G3: Scrutiny required in the form of external reviews and/or investigations | H3: National intense public, political and media scrutiny evidenced by front page headlines and/or television coverage. | I3: Complete Loss of Integrity with Investment Community
A4: Risk Criteria | D4: Financial | E4: <$??k | F4: >/= $??k | G4: >/= $???k | H4: >/= $???k | I4: >/=$???k
D6: Organisational Objectives - Strategic Plan | E6: Would require some adjustment to achieve plan | F6: Would require significant adjustment to achieve plan | G6: Would threaten achievement of strategic imperatives | H6: Would stop achievement of a strategic imperative | I6: Unable to fulfil mission
E7: 1 | F7: 2 | G7: 3 | H7: 4 | I7: 5
E8: Insignificant | F8: Minor | G8: Moderate | H8: Major | I8: Catastrophic
A9: Likelihood | B9: Expected in most circumstances. Has occurred on an annual basis in the past or circumstances are in train that will cause it to happen | C9: A | D9: Almost Certain | E9: L | F9: M | G9: H | H9: E | I9: E
B10: Has occurred in the last few years or has occurred recently in other similar organisations or circumstances have occurred that will cause it to happen in the short term | C10: B | D10: Likely | E10: L | F10: M | G10: H | H10: H | I10: E
B11: Has occurred at least once in the history of the organisation or is considered to have a 5% chance of occurring in the current planning cycle | C11: C | D11: Possible | E11: L | F11: M | G11: M | H11: H | I11: H
B12: Has never occurred here but has occurred infrequently in other similar organisations or has a 1% chance of occurring in the current planning cycle | C12: D | D12: Unlikely | E12: L | F12: L | G12: M | H12: M | I12: H
B13: Has not occurred to date in any similar organisat'n and is considered to have very much less than a 1% chance of occurring in the current planning cycle | C13: E | D13: Rare | E13: L | F13: L | G13: M | H13: M | I13: M
A15: Extreme | B15: Unacceptable | C15: Must be given immediate senior management attention. | H15: Detailed Action Plan | I15: CEO responsibility
A16: High | B16: Active Management | C16: Must have considerable management to reduce to as low as reasonably practicable (ALARP) | H16: Detailed Action Plan | I16: Senior Mgmt attention
A17: Medium | B17: Tolerable | C17: Risks should be managed and monitored to reduce to as low as reasonably practicable (ALARP) | H17: Specify management responsibility
A18: Low | B18: No Action Required | C18: Manage and monitor with normal operational management practices | H18: Manage by routine procedures

Sheet Risk Criteria NFP
E1: Consequence
B2: LOGO | D2: Safety | E2: Ailments Not Requiring Medical Treatment | F2: Minor Injury | G2: 1 Serious Injury Causing Hospitalisation or Multiple Minor Injuries | H2: Child Sexual Assault by Staff or 1 Life Threatening Injury or Multiple Serious Injuries Causing Hospitalisation | I2: 1 Death or Multiple Life Threatening Injuries Due to Negligence of PV
D3: Reputation | E3: Self-improvement review required | F3: Scrutiny required by internal committees or internal audit to prevent escalation | G3: Scrutiny required in the form of external reviews and/or investigations | H3: National intense public, political and media scrutiny evidenced by front page headlines and/or television coverage. | I3: Complete Loss of Integrity with Government or Community
A4: Risk Criteria | D4: Financial | E4: <$??k | F4: >/= $??k | G4: >/= $???k | H4: >/= $???k | I4: >/=$???k
D6: Organisational Objectives - Strategic Plan | E6: Would require some adjustment to achieve plan | F6: Would require significant adjustment to achieve plan | G6: Would threaten achievement of strategic imperatives | H6: Would stop achievement of a strategic imperative | I6: Unable to fulfil mission
E7: 1 | F7: 2 | G7: 3 | H7: 4 | I7: 5
E8: Insignificant | F8: Minor | G8: Moderate | H8: Major | I8: Catastrophic
A9: Likelihood | B9: Expected in most circumstances. Has occurred on an annual basis in the past or circumstances are in train that will cause it to happen | C9: A | D9: Almost Certain | E9: L | F9: M | G9: H | H9: E | I9: E
B10: Has occurred in the last few years or has occurred recently in other similar organisations or circumstances have occurred that will cause it to happen in the short term | C10: B | D10: Likely | E10: L | F10: M | G10: H | H10: H | I10: E
B11: Has occurred at least once in the history of the organisation or is considered to have a 5% chance of occurring in the current planning cycle | C11: C | D11: Possible | E11: L | F11: M | G11: M | H11: H | I11: H
B12: Has never occurred here but has occurred infrequently in other similar organisations or has a 1% chance of occurring in the current planning cycle | C12: D | D12: Unlikely | E12: L | F12: L | G12: M | H12: M | I12: H
B13: Has not occurred to date in any similar organisat'n and is considered to have very much less than a 1% chance of occurring in the current planning cycle | C13: E | D13: Rare | E13: L | F13: L | G13: M | H13: M | I13: M
A15: Extreme | B15: Unacceptable | C15: Must be given immediate senior management attention. | H15: Detailed Action Plan | I15: CEO responsibility
A16: High | B16: Active Management | C16: Must have considerable management to reduce to as low as reasonably practicable (ALARP) | H16: Detailed Action Plan | I16: Senior Mgmt attention
A17: Medium | B17: Tolerable | C17: Risks should be managed and monitored to reduce to as low as reasonably practicable (ALARP) | H17: Specify management responsibility
A18: Low | B18: No Action Required | C18: Manage and monitor with normal operational management practices | H18: Manage by routine procedures

Sheet Risk Criteria Public Sector
E1: Consequence
B2: LOGO | D2: Safety | E2: Ailments Not Requiring Medical Treatment | F2: Minor Injury | G2: 1 Serious Injury Causing Hospitalisation or Multiple Minor Injuries | H2: 1 Life Threatending Injury or Multiple Serious Injuries Causing Hospitalisation | I2: 1 Death or Multiple Life Threatening Injuries
D3: Reputation | E3: Self-improvement review required | F3: Scrutiny required by internal committees or internal audit to prevent escalation | G3: Scrutiny required by external committees or ANAO | H3: Intense public, political and media scrutiny evidenced by front page headlines and/or television coverage. | I3: Royal Commissions/Parliamentary Enquiries
A4: Risk Assessment Criteria | D4: Financial | E4: 1% of Budget | F4: 2-5% of Budget | G4: > 5% of Budget | H4: > 10% of Budget | I4: > 25% of Budget
D6: Organisational Objectives - Strategic Plan | E6: Very little consequence to achievement of plan | F6: Would require some adjustment to achieve plan | G6: Would require significant adjustment to achieve plan | H6: Would threaten achievement of objectives | I6: Would stop achievement of strategic plan
E7: 1 | F7: 2 | G7: 3 | H7: 4 | I7: 5
E8: Insignificant | F8: Minor | G8: Moderate | H8: Major | I8: Catastrophic
A9: Likelihood | B9: Expected in most circumstances. Has occurred on an annual basis in OrgName in the past or circumstances are in train that will cause it to happen | C9: A | D9: Almost Certain | E9: L | F9: M | G9: H | H9: E | I9: E
B10: Has occurred in the last few years in OrgName or has occurred recently in other similar agencies or circumstances have occurred that will cause it to happen in the short term | C10: B | D10: Likely | E10: L | F10: M | G10: H | H10: H | I10: E
B11: Has occurred at least once in the history of the OrgName or is considered to have a 5% chance of occuring in the current planning cycle | C11: C | D11: Possible | E11: L | F11: M | G11: M | H11: H | I11: H
B12: Has never occurred in OrgName but has occurred infrequently in other similar agencies or is considered to have a around a 1% chance of occurring in the current planning cycle | C12: D | D12: Unlikely | E12: L | F12: L | G12: M | H12: M | I12: H
B13: Exceptional circumstances only. Is possible but has not occurred to date in any similar agency and is considered to have very much less than a 1% chance of occuring in the current planning cycle | C13: E | D13: Rare | E13: L | F13: L | G13: M | H13: M | I13: M
A15: Extreme | B15: Unacceptable | C15: Must be given immediate senior management attention. | H15: Detailed Action Plan | I15: Exec Mgmt responsibility
A16: High | B16: Active Management | C16: Must have considerable management to reduce to as low as reasonably practicable (ALARP) | H16: Detailed Action Plan | I16: Senior Mgmt attention
A17: Medium | B17: Tolerable | C17: Risks should be managed and monitored to reduce to as low as reasonably practicable (ALARP) | H17: Specify management responsibility
A18: Low | B18: No Action Required | C18: Manage and monitor with normal operational management practices | H18: Manage by routine procedures

Sheet Risk Profile
A1: Risk | B1: 1.0 | C1: Impact of risk happening | F1: Consequence | G1: Likelihood | J1: Risk Level
A3: Risk Owner | D3: Review Date, Trend and Target Risk Level
A5: Source No. | B5: Sources | C5: Current controls and adequacy of controls | E5: Risk Treatments | F5: Person Responsible | G5: By When | H5: Consequence | I5: Likelihood | J5: Risk Level
C6: A = Adeq M = Moderately Adeq I = Inadqt
A7: 1.1
A8: 1.2
A9: 1.3
A10: 1.4
A11: 1.5
A12: 1.6
A13: 1.7
A14: 1.8
A15: 1.9
A18: Risk | B18: 2.0 | C18: Impact of risk happening | F18: Consequence | G18: Likelihood | J18: Risk Level
A20: Risk Owner | D20: Review Date, Trend and Target Risk Level
A22: Source No. | B22: Sources | E22: Risk Treatments | F22: Person Responsible | G22: By When | H22: Consequence | I22: Likelihood | J22: Risk Level
A24: =B18+0.1 -> 2.1
A25: =A24+0.1 -> 2.2
A26: =A25+0.1 -> 2.3
A27: =A26+0.1 -> 2.4
A28: 2.5
A29: 2.6
A30: 2.7
A31: 2.8
A32: 2.9
A35: Risk | B35: 3.0 | C35: Impact of risk happening | F35: Consequence | G35: Likelihood | J35: Risk Level
A37: Risk Owner | D37: Review Date, Trend and Target Risk Level
A39: Source No. | B39: Sources | E39: Risk Treatments | F39: Person Responsible | G39: By When | H39: Consequence | I39: Likelihood | J39: Risk Level
A41: =B35+0.1 -> 3.1
A42: =A41+0.1 -> 3.2
A43: =A42+0.1 -> 3.3
A44: =A43+0.1 -> 3.4
A45: 3.5
A46: 3.6
A47: 3.7
A48: 3.8
A49: 3.9
A52: Risk | B52: 4.0 | C52: Impact of risk happening | F52: Consequence | G52: Likelihood | J52: Risk Level
A54: Risk Owner | D54: Review Date, Trend and Target Risk Level
A56: Source No. | B56: Sources | E56: Risk Treatments | F56: Person Responsible | G56: By When | H56: Consequence | I56: Likelihood | J56: Risk Level
A58: =B52+0.1 -> 4.1
A59: =A58+0.1 -> 4.2
A60: =A59+0.1 -> 4.3
A61: =A60+0.1 -> 4.4
A62: 4.5
A63: 4.6
A64: 4.7
A65: 4.8
A66: 4.9
A69: Risk | B69: 5.0 | C69: Impact of risk happening | F69: Consequence | G69: Likelihood | J69: Risk Level
A71: Risk Owner | D71: Review Date, Trend and Target Risk Level
A73: Source No. | B73: Sources | E73: Risk Treatments | F73: Person Responsible | G73: By When | H73: Consequence | I73: Likelihood | J73: Risk Level
A75: =B69+0.1 -> 5.1
A76: =A75+0.1 -> 5.2
A77: =A76+0.1 -> 5.3
A78: =A77+0.1 -> 5.4
A79: 5.5
A80: 5.6
A81: 5.7
A82: 5.8
A83: 5.9
A86: Risk | B86: 6.0 | C86: Impact of risk happening | F86: Consequence | G86: Likelihood | J86: Risk Level
A88: Risk Owner | D88: Review Date, Trend and Target Risk Level
A90: Source No. | B90: Sources | E90: Risk Treatments | F90: Person Responsible | G90: By When | H90: Consequence | I90: Likelihood | J90: Risk Level
A92: =B86+0.1 -> 6.1
A93: =A92+0.1 -> 6.2
A94: =A93+0.1 -> 6.3
A95: =A94+0.1 -> 6.4
A96: 6.5
A97: 6.6
A98: 6.7
A99: 6.8
A100: 6.9
